[Event "*** Titled Tuesday Blitz"]
[Site "Chess.com"]
[Date "2020.03.03"]
[Round "4"]
[White "JulianProleiko"]
[Black "Eloist"]
[Result "1-0"]
[WhiteElo "2486"]
[BlackElo "2286"]
[TimeControl "180+1"]
[EndTime "13:39:26 PST"]
[Termination "JulianProleiko won by checkmate"]

1. d4 {[%clk 0:02:47.9]} 1... e6 {[%clk 0:02:58.5]} 2. e4 {[%clk 0:02:47.7]}
2... d5 {[%clk 0:02:57.5]} 3. Nc3 {[%clk 0:02:48.3]} 3... Nf6 {[%clk 0:02:57.7]}
4. e5 {[%clk 0:02:48.5]} 4... Nfd7 {[%clk 0:02:57.8]} 5. f4 {[%clk 0:02:49.4]}
5... c5 {[%clk 0:02:58.2]} 6. Nf3 {[%clk 0:02:49.8]} 6... Nc6 {[%clk 0:02:58.5]}
7. Be3 {[%clk 0:02:49.9]} 7... a6 {[%clk 0:02:58.8]} 8. Qd2 {[%clk 0:02:49.7]}
8... b5 {[%clk 0:02:58.9]} 9. Bd3 {[%clk 0:02:48.8]} 9... b4 {[%clk 0:02:53.1]}
10. Nd1 {[%clk 0:02:48.4]} 10... a5 {[%clk 0:02:47.6]} 11. O-O {[%clk
0:02:47.4]} 11... Qb6 {[%clk 0:02:44.6]} 12. c3 {[%clk 0:02:47.1]} 12... Ba6
{[%clk 0:02:44]} 13. Nf2 {[%clk 0:02:38.9]} 13... Bxd3 {[%clk 0:02:36.8]} 14.
Nxd3 {[%clk 0:02:39.8]} 14... c4 {[%clk 0:02:35.7]} 15. Nf2 {[%clk 0:02:38.5]}
15... g6 {[%clk 0:02:34]} 16. h3 {[%clk 0:02:29.3]} 16... h5 {[%clk 0:02:33.4]}
17. g4 {[%clk 0:02:29.2]} 17... hxg4 {[%clk 0:02:32.5]} 18. hxg4 {[%clk
0:02:30.1]} 18... Be7 {[%clk 0:02:32.8]} 19. Kg2 {[%clk 0:02:30.3]} 19... O-O-O
{[%clk 0:02:06]} 20. Rh1 {[%clk 0:02:24.6]} 20... Kc7 {[%clk 0:02:03.1]} 21. Nh3
{[%clk 0:02:14.3]} 21... a4 {[%clk 0:01:53.2]} 22. Nhg5 {[%clk 0:02:12.9]} 22...
a3 {[%clk 0:01:44.7]} 23. Nxf7 {[%clk 0:02:11.3]} 23... axb2 {[%clk 0:01:38]}
24. Qxb2 {[%clk 0:02:08.2]} 24... Rxh1 {[%clk 0:01:35.7]} 25. Rxh1 {[%clk
0:02:09.1]} 25... Ra8 {[%clk 0:01:26]} 26. f5 {[%clk 0:02:03.2]} 26... gxf5
{[%clk 0:01:24.3]} 27. gxf5 {[%clk 0:02:04.1]} 27... bxc3 {[%clk 0:01:10.9]} 28.
Qxb6+ {[%clk 0:02:01.1]} 28... Nxb6 {[%clk 0:01:10]} 29. fxe6 {[%clk 0:02:00.9]}
29... Rxa2+ {[%clk 0:01:08.6]} 30. Kg3 {[%clk 0:02:01.3]} 30... c2 {[%clk
0:01:01.6]} 31. Rc1 {[%clk 0:01:50.7]} 31... Nb4 {[%clk 0:01:00.5]} 32. Ne1
{[%clk 0:01:38.7]} 32... c3 {[%clk 0:00:48.1]} 33. Kg4 {[%clk 0:01:35.1]} 33...
Nc4 {[%clk 0:00:47]} 34. Bg5 {[%clk 0:01:33.9]} 34... Bxg5 {[%clk 0:00:39]} 35.
Kxg5 {[%clk 0:01:34.8]} 35... Na5 {[%clk 0:00:17.4]} 36. e7 {[%clk 0:01:32.9]}
36... Kd7 {[%clk 0:00:16.6]} 37. Kf6 {[%clk 0:01:32.7]} 37... Nac6 {[%clk
0:00:11.7]} 38. e6+ {[%clk 0:01:31.3]} 38... Ke8 {[%clk 0:00:10.9]} 39. Nd6#
{[%clk 0:01:31.3]} 1-0

[Event "*** Titled Tuesday Blitz"]
[Site "Chess.com"]
[Date "2020.03.03"]
[Round "4"]
[White "Everyfishknows"]
[Black "amiralfio"]
[Result "0-1"]
[WhiteElo "2411"]
[BlackElo "2606"]
[TimeControl "180+1"]
[EndTime "13:39:28 PST"]
[Termination "amiralfio won on time"]

1. d4 {[%clk 0:03:00.9]} 1... f5 {[%clk 0:02:58.7]} 2. c4 {[%clk 0:02:50.2]}
2... Nf6 {[%clk 0:02:56.6]} 3. Nc3 {[%clk 0:02:49.5]} 3... e6 {[%clk 0:02:56.2]}
4. Nf3 {[%clk 0:02:43.1]} 4... Bb4 {[%clk 0:02:56.4]} 5. g3 {[%clk 0:02:39.4]}
5... b6 {[%clk 0:02:56]} 6. Bg2 {[%clk 0:02:39.2]} 6... Bb7 {[%clk 0:02:55.7]}
7. O-O {[%clk 0:02:39.8]} 7... Bxc3 {[%clk 0:02:55.8]} 8. bxc3 {[%clk
0:02:39.8]} 8... O-O {[%clk 0:02:56.1]} 9. a4 {[%clk 0:02:37.3]} 9... Nc6 {[%clk
0:02:51]} 10. Ne5 {[%clk 0:02:27.6]} 10... Nxe5 {[%clk 0:02:45.2]} 11. Bxb7
{[%clk 0:02:05.8]} 11... Nxc4 {[%clk 0:02:44.6]} 12. Bxa8 {[%clk 0:01:56.5]}
12... Qxa8 {[%clk 0:02:45.5]} 13. Qd3 {[%clk 0:01:48.9]} 13... d5 {[%clk
0:02:43.7]} 14. Bf4 {[%clk 0:01:35.7]} 14... Qc6 {[%clk 0:02:35.7]} 15. f3
{[%clk 0:01:24.2]} 15... a5 {[%clk 0:02:33.8]} 16. Rfe1 {[%clk 0:01:09.2]} 16...
h6 {[%clk 0:02:31.3]} 17. Be5 {[%clk 0:01:01.4]} 17... Nd7 {[%clk 0:02:13.4]}
18. Bf4 {[%clk 0:00:58.7]} 18... g5 {[%clk 0:02:10.5]} 19. Bc1 {[%clk
0:00:58.1]} 19... Nf6 {[%clk 0:02:10.5]} 20. h4 {[%clk 0:00:38.9]} 20... Qd6
{[%clk 0:01:37.1]} 21. Kf2 {[%clk 0:00:20.1]} 21... Ne4+ {[%clk 0:01:33.9]} 22.
Kf1 {[%clk 0:00:09.7]} 22... Qxg3 {[%clk 0:01:27.5]} 23. Be3 {[%clk 0:00:02.3]}
23... f4 {[%clk 0:00:59.5]} 0-1

[Event "*** Titled Tuesday Blitz"]
[Site "Chess.com"]
[Date "2020.03.03"]
[Round "4"]
[White "francyIM"]
[Black "rasmussvane"]
[Result "0-1"]
[WhiteElo "2705"]
[BlackElo "2898"]
[TimeControl "180+1"]
[EndTime "13:39:47 PST"]
[Termination "rasmussvane won by resignation"]

1. d4 {[%clk 0:02:46.5]} 1... d5 {[%clk 0:02:59.7]} 2. c4 {[%clk 0:02:46.3]}
2... e6 {[%clk 0:03:00.2]} 3. Nc3 {[%clk 0:02:45.5]} 3... a6 {[%clk 0:03:00.5]}
4. cxd5 {[%clk 0:02:43.3]} 4... exd5 {[%clk 0:03:01.4]} 5. Nf3 {[%clk
0:02:43.8]} 5... Nf6 {[%clk 0:03:00.9]} 6. Bf4 {[%clk 0:02:43.2]} 6... Bd6
{[%clk 0:03:00.2]} 7. Bg3 {[%clk 0:02:41.3]} 7... O-O {[%clk 0:02:59.9]} 8. e3
{[%clk 0:02:40.1]} 8... Bf5 {[%clk 0:02:54.7]} 9. Qb3 {[%clk 0:02:36]} 9... Ra7
{[%clk 0:02:50.6]} 10. Be2 {[%clk 0:02:33]} 10... c6 {[%clk 0:02:48.2]} 11. O-O
{[%clk 0:02:32.7]} 11... Bxg3 {[%clk 0:02:47.8]} 12. hxg3 {[%clk 0:02:31.2]}
12... Nbd7 {[%clk 0:02:48.2]} 13. a4 {[%clk 0:02:29.8]} 13... Re8 {[%clk
0:02:47.5]} 14. a5 {[%clk 0:02:29.8]} 14... Qe7 {[%clk 0:02:46]} 15. Rfe1 {[%clk
0:02:29.3]} 15... h6 {[%clk 0:02:42.8]} 16. Qa3 {[%clk 0:02:28.6]} 16... Qd8
{[%clk 0:02:40]} 17. Nd2 {[%clk 0:02:21.3]} 17... Re6 {[%clk 0:02:33.8]} 18. Bf1
{[%clk 0:02:20.1]} 18... Ra8 {[%clk 0:02:30.5]} 19. f3 {[%clk 0:02:18.9]} 19...
Qc7 {[%clk 0:02:28.6]} 20. Kf2 {[%clk 0:02:17.4]} 20... Rae8 {[%clk 0:02:22.1]}
21. Nd1 {[%clk 0:02:11]} 21... Nh5 {[%clk 0:02:14]} 22. f4 {[%clk 0:02:03.3]}
22... Ndf6 {[%clk 0:02:12.3]} 23. Be2 {[%clk 0:02:02.1]} 23... Ng4+ {[%clk
0:01:57.3]} 24. Bxg4 {[%clk 0:02:01.1]} 24... Bxg4 {[%clk 0:01:58.2]} 25. Nf1
{[%clk 0:02:00.5]} 25... Bxd1 {[%clk 0:01:54.9]} 26. Raxd1 {[%clk 0:01:59.5]}
26... Nf6 {[%clk 0:01:55.4]} 27. Kg1 {[%clk 0:01:53.2]} 27... Ne4 {[%clk
0:01:52.2]} 28. b4 {[%clk 0:01:49.9]} 28... Rg6 {[%clk 0:01:52.1]} 29. Qd3
{[%clk 0:01:45.3]} 29... Qd7 {[%clk 0:01:50.4]} 30. Qe2 {[%clk 0:01:43.8]} 30...
Nxg3 {[%clk 0:01:48.9]} 31. Nxg3 {[%clk 0:01:44.7]} 31... Rxg3 {[%clk
0:01:49.8]} 32. Kf2 {[%clk 0:01:42.4]} 32... Rg6 {[%clk 0:01:47.4]} 33. Qh5
{[%clk 0:01:41.1]} 33... Qe7 {[%clk 0:01:42.6]} 34. Rb1 {[%clk 0:01:32.4]} 34...
Qe4 {[%clk 0:01:42.2]} 35. Qf3 {[%clk 0:01:31.4]} 35... Qc2+ {[%clk 0:01:41.8]}
36. Qe2 {[%clk 0:01:28.8]} 36... Qf5 {[%clk 0:01:42.2]} 37. Rh1 {[%clk
0:01:25.4]} 37... Rg4 {[%clk 0:01:39.4]} 38. g3 {[%clk 0:01:22.4]} 38... h5
{[%clk 0:01:37.9]} 39. Rbg1 {[%clk 0:01:19.4]} 39... g6 {[%clk 0:01:30.6]} 40.
Rh4 {[%clk 0:01:18.2]} 40... Kg7 {[%clk 0:01:24.5]} 41. Rxg4 {[%clk 0:01:16]}
41... hxg4 {[%clk 0:01:25.4]} 42. Rh1 {[%clk 0:01:14.9]} 42... Rh8 {[%clk
0:01:14.6]} 43. Rh4 {[%clk 0:01:11]} 43... Rxh4 {[%clk 0:00:57]} 44. gxh4 {[%clk
0:01:11.9]} 44... Qe6 {[%clk 0:00:56.6]} 45. Kg3 {[%clk 0:01:08.8]} 45... f5
{[%clk 0:00:56.9]} 46. Qd3 {[%clk 0:01:08.3]} 46... Qe4 {[%clk 0:00:52.8]} 47.
Qxe4 {[%clk 0:01:07.8]} 47... dxe4 {[%clk 0:00:53.1]} 0-1

[Event "*** Titled Tuesday Blitz"]
[Site "Chess.com"]
[Date "2020.03.03"]
[Round "4"]
[White "Incognito_Knight"]
[Black "Perecke"]
[Result "1-0"]
[WhiteElo "2662"]
[BlackElo "2302"]
[TimeControl "180+1"]
[EndTime "13:39:48 PST"]
[Termination "Incognito_Knight won by resignation"]

1. e4 {[%clk 0:02:59.9]} 1... e5 {[%clk 0:02:58]} 2. Nf3 {[%clk 0:02:58.8]} 2...
Nc6 {[%clk 0:02:57.9]} 3. Bb5 {[%clk 0:02:56.8]} 3... a6 {[%clk 0:02:54]} 4. Ba4
{[%clk 0:02:56.8]} 4... Nf6 {[%clk 0:02:49.9]} 5. d4 {[%clk 0:02:56.8]} 5...
Nxe4 {[%clk 0:02:41.9]} 6. O-O {[%clk 0:02:56]} 6... b5 {[%clk 0:02:31.6]} 7.
Bb3 {[%clk 0:02:55.9]} 7... d5 {[%clk 0:02:30.8]} 8. dxe5 {[%clk 0:02:56.3]}
8... Be6 {[%clk 0:02:30.8]} 9. Nbd2 {[%clk 0:02:56.4]} 9... Nc5 {[%clk
0:02:30.6]} 10. c3 {[%clk 0:02:56.9]} 10... Nxb3 {[%clk 0:02:30]} 11. Nxb3
{[%clk 0:02:57.8]} 11... Be7 {[%clk 0:02:29.5]} 12. Be3 {[%clk 0:02:32.4]} 12...
O-O {[%clk 0:02:23.3]} 13. Nbd4 {[%clk 0:02:30.7]} 13... Nxd4 {[%clk 0:02:20.7]}
14. Nxd4 {[%clk 0:02:24.7]} 14... c5 {[%clk 0:02:19.8]} 15. Nc6 {[%clk
0:02:12.7]} 15... Qc7 {[%clk 0:02:09.8]} 16. Nxe7+ {[%clk 0:02:12.3]} 16... Qxe7
{[%clk 0:02:10.7]} 17. f4 {[%clk 0:02:10.4]} 17... f5 {[%clk 0:02:03.2]} 18. Qd2
{[%clk 0:02:03.2]} 18... Rfd8 {[%clk 0:01:57.3]} 19. Qf2 {[%clk 0:01:56.4]}
19... Rac8 {[%clk 0:01:56]} 20. Rfd1 {[%clk 0:01:56.4]} 20... Bf7 {[%clk
0:01:37.9]} 21. a3 {[%clk 0:01:56]} 21... a5 {[%clk 0:01:30.5]} 22. Rac1 {[%clk
0:01:53.4]} 22... b4 {[%clk 0:01:23.3]} 23. axb4 {[%clk 0:01:51.8]} 23... axb4
{[%clk 0:01:20.9]} 24. cxb4 {[%clk 0:01:50.9]} 24... d4 {[%clk 0:01:12.2]} 25.
Bd2 {[%clk 0:01:51.1]} 25... c4 {[%clk 0:01:12]} 26. Be1 {[%clk 0:01:46]} 26...
Qa7 {[%clk 0:00:58.4]} 27. Bc3 {[%clk 0:01:44.1]} 27... dxc3 {[%clk 0:00:28.1]}
28. Qxa7 {[%clk 0:01:32.8]} 28... cxb2 {[%clk 0:00:26.6]} 29. Rxd8+ {[%clk
0:01:22.4]} 29... Rxd8 {[%clk 0:00:27.5]} 30. Rb1 {[%clk 0:01:05.7]} 30... c3
{[%clk 0:00:07]} 31. Qc7 {[%clk 0:01:03.1]} 31... Rd1+ {[%clk 0:00:02.3]} 1-0

[Event "*** Titled Tuesday Blitz"]
[Site "Chess.com"]
[Date "2020.03.03"]
[Round "4"]
[White "kleinebeer98"]
[Black "MITerryble"]
[Result "0-1"]
[WhiteElo "2702"]
[BlackElo "2920"]
[TimeControl "180+1"]
[EndTime "13:39:49 PST"]
[Termination "MITerryble won by resignation"]

1. e4 {[%clk 0:03:00.9]} 1... e6 {[%clk 0:03:00.2]} 2. d4 {[%clk 0:02:58.9]}
2... d5 {[%clk 0:03:00.5]} 3. Nc3 {[%clk 0:02:59.8]} 3... Nf6 {[%clk 0:03:00.6]}
4. Bg5 {[%clk 0:02:58.8]} 4... Bb4 {[%clk 0:03:00.4]} 5. e5 {[%clk 0:02:58.5]}
5... h6 {[%clk 0:03:00.9]} 6. Bd2 {[%clk 0:02:57.9]} 6... Bxc3 {[%clk
0:03:01.3]} 7. bxc3 {[%clk 0:02:58.8]} 7... Ne4 {[%clk 0:03:02.2]} 8. Bc1 {[%clk
0:02:59.3]} 8... c5 {[%clk 0:03:01.9]} 9. Ne2 {[%clk 0:02:58.2]} 9... cxd4
{[%clk 0:02:58]} 10. cxd4 {[%clk 0:02:57.3]} 10... Qa5+ {[%clk 0:02:50.7]} 11.
c3 {[%clk 0:02:57.4]} 11... Nc6 {[%clk 0:02:51.2]} 12. f3 {[%clk 0:02:56.5]}
12... Nxc3 {[%clk 0:02:50.8]} 13. Qd2 {[%clk 0:02:53.4]} 13... Nxe2 {[%clk
0:02:50.8]} 14. Qxa5 {[%clk 0:02:53.5]} 14... Nxa5 {[%clk 0:02:51.1]} 15. Bxe2
{[%clk 0:02:53.5]} 15... Nc4 {[%clk 0:02:50.2]} 16. Rb1 {[%clk 0:02:45.7]} 16...
b6 {[%clk 0:02:48.4]} 17. Rb4 {[%clk 0:02:33]} 17... Ba6 {[%clk 0:02:43.4]} 18.
Ra4 {[%clk 0:02:33.3]} 18... Bb5 {[%clk 0:02:42]} 19. Rb4 {[%clk 0:02:33.7]}
19... Bc6 {[%clk 0:02:40.9]} 20. Bxc4 {[%clk 0:02:31.9]} 20... dxc4 {[%clk
0:02:41.8]} 21. Rxc4 {[%clk 0:02:32.8]} 21... Kd7 {[%clk 0:02:42.2]} 22. Ba3
{[%clk 0:02:28.8]} 22... Bd5 {[%clk 0:02:42.1]} 23. Rc2 {[%clk 0:02:26.3]} 23...
Rhc8 {[%clk 0:02:41.9]} 24. Rxc8 {[%clk 0:02:10.3]} 24... Rxc8 {[%clk
0:02:41.6]} 25. Kd2 {[%clk 0:02:11.2]} 25... Bxa2 {[%clk 0:02:40.6]} 26. Bb4
{[%clk 0:01:58.8]} 26... a5 {[%clk 0:02:33.6]} 27. Bc3 {[%clk 0:01:56.4]} 27...
a4 {[%clk 0:02:31.4]} 28. Rc1 {[%clk 0:01:45.8]} 28... Bd5 {[%clk 0:02:24]} 29.
Bb4 {[%clk 0:01:43.5]} 29... Rxc1 {[%clk 0:02:16.8]} 30. Kxc1 {[%clk 0:01:44.4]}
30... h5 {[%clk 0:02:16.5]} 31. h4 {[%clk 0:01:43.6]} 31... Bc4 {[%clk
0:02:16.1]} 32. Kd2 {[%clk 0:01:37.4]} 32... Kc6 {[%clk 0:02:15.9]} 33. g4
{[%clk 0:01:24.2]} 33... g6 {[%clk 0:02:14.3]} 34. gxh5 {[%clk 0:01:20.7]} 34...
gxh5 {[%clk 0:02:15.2]} 35. Ba3 {[%clk 0:01:05.9]} 35... Kd5 {[%clk 0:02:11]}
36. Kc3 {[%clk 0:00:56.5]} 36... Be2 {[%clk 0:02:11]} 37. f4 {[%clk 0:00:52.9]}
37... Ke4 {[%clk 0:02:11]} 38. Bc1 {[%clk 0:00:43]} 38... Kf5 {[%clk 0:02:00.3]}
39. Kb4 {[%clk 0:00:38.9]} 39... Kg4 {[%clk 0:01:56.7]} 40. Kxa4 {[%clk
0:00:31.6]} 40... Bf3 {[%clk 0:01:38.9]} 41. Kb5 {[%clk 0:00:23.1]} 41... Kxh4
{[%clk 0:01:38.9]} 42. f5 {[%clk 0:00:19.1]} 42... Kg4 {[%clk 0:01:28.1]} 43.
fxe6 {[%clk 0:00:15.4]} 43... fxe6 {[%clk 0:01:29]} 0-1

[Event "*** Titled Tuesday Blitz"]
[Site "Chess.com"]
[Date "2020.03.03"]
[Round "4"]
[White "semchik73"]
[Black "Enriquack"]
[Result "0-1"]
[WhiteElo "2287"]
[BlackElo "2222"]
[TimeControl "180+1"]
[EndTime "13:39:50 PST"]
[Termination "Enriquack won by resignation"]

1. Nf3 {[%clk 0:01:10]} 1... Nf6 {[%clk 0:02:57.3]} 2. c4 {[%clk 0:01:10.4]}
2... g6 {[%clk 0:02:51.1]} 3. Nc3 {[%clk 0:01:10.7]} 3... d5 {[%clk 0:02:48.2]}
4. d4 {[%clk 0:01:09.7]} 4... Bg7 {[%clk 0:02:47]} 5. Qb3 {[%clk 0:01:10.2]}
5... dxc4 {[%clk 0:02:46.6]} 6. Qxc4 {[%clk 0:01:10.6]} 6... a6 {[%clk
0:02:47.2]} 7. e4 {[%clk 0:01:10.9]} 7... b5 {[%clk 0:02:47.5]} 8. Qb3 {[%clk
0:01:11.1]} 8... O-O {[%clk 0:02:46]} 9. Be2 {[%clk 0:01:11.2]} 9... c5 {[%clk
0:02:40.8]} 10. Be3 {[%clk 0:01:10.4]} 10... b4 {[%clk 0:02:25.4]} 11. Na4
{[%clk 0:01:08.1]} 11... cxd4 {[%clk 0:02:12.1]} 12. Bxd4 {[%clk 0:01:06.5]}
12... Nc6 {[%clk 0:01:58.7]} 13. Bxf6 {[%clk 0:01:04.7]} 13... Bxf6 {[%clk
0:01:56.5]} 14. O-O {[%clk 0:01:05.1]} 14... Be6 {[%clk 0:01:55.3]} 15. Qc2
{[%clk 0:01:04.1]} 15... b3 {[%clk 0:01:27.2]} 16. axb3 {[%clk 0:01:03.5]} 16...
Nb4 {[%clk 0:01:27]} 17. Qd2 {[%clk 0:01:03.3]} 17... Qxd2 {[%clk 0:00:57.6]}
18. Nxd2 {[%clk 0:01:03.7]} 18... Rfd8 {[%clk 0:00:50.7]} 19. Nc4 {[%clk
0:01:03.8]} 19... Nc2 {[%clk 0:00:44.3]} 20. Rad1 {[%clk 0:01:02.7]} 20... Nd4
{[%clk 0:00:42.7]} 21. Bd3 {[%clk 0:01:02.8]} 21... Nxb3 {[%clk 0:00:40]} 22. e5
{[%clk 0:01:02.5]} 22... Rxd3 {[%clk 0:00:29.7]} 23. Rxd3 {[%clk 0:01:01.1]}
23... Bxc4 {[%clk 0:00:29.4]} 24. exf6 {[%clk 0:00:58.8]} 24... Bxd3 {[%clk
0:00:27.4]} 25. Rd1 {[%clk 0:00:59.2]} 25... Bb5 {[%clk 0:00:25.2]} 26. Nc3
{[%clk 0:00:57.7]} 26... exf6 {[%clk 0:00:24.5]} 27. Rd6 {[%clk 0:00:55.4]}
27... Kg7 {[%clk 0:00:23.2]} 28. Ne4 {[%clk 0:00:54.4]} 28... Re8 {[%clk
0:00:20.6]} 29. f3 {[%clk 0:00:52.6]} 29... f5 {[%clk 0:00:18.8]} 30. Nc3 {[%clk
0:00:52.8]} 30... Re1+ {[%clk 0:00:18]} 31. Kf2 {[%clk 0:00:53.2]} 31... Rb1
{[%clk 0:00:18]} 32. Nd5 {[%clk 0:00:51.1]} 32... Rxb2+ {[%clk 0:00:17.5]} 33.
Kg3 {[%clk 0:00:51.6]} 33... Rd2 {[%clk 0:00:15.9]} 34. Nc7 {[%clk 0:00:51.9]}
34... Rxd6 {[%clk 0:00:15.7]} 35. Nxb5 {[%clk 0:00:52.3]} 35... axb5 {[%clk
0:00:15.5]} 0-1

[Event "*** Titled Tuesday Blitz"]
[Site "Chess.com"]
[Date "2020.03.03"]
[Round "4"]
[White "DonBroca"]
[Black "AyMitecK"]
[Result "0-1"]
[WhiteElo "2040"]
[BlackElo "2323"]
[TimeControl "180+1"]
[EndTime "13:39:53 PST"]
[Termination "AyMitecK won by resignation"]

1. e4 {[%clk 0:02:56.5]} 1... c5 {[%clk 0:02:58.8]} 2. Nf3 {[%clk 0:02:54]} 2...
e6 {[%clk 0:02:56.5]} 3. d4 {[%clk 0:02:50.9]} 3... cxd4 {[%clk 0:02:56.3]} 4.
Nxd4 {[%clk 0:02:51.8]} 4... a6 {[%clk 0:02:56.9]} 5. Bd3 {[%clk 0:02:51.7]}
5... Bc5 {[%clk 0:02:56.1]} 6. Nb3 {[%clk 0:02:47.6]} 6... Ba7 {[%clk
0:02:56.4]} 7. Qg4 {[%clk 0:02:46.3]} 7... Nf6 {[%clk 0:02:55.8]} 8. Qxg7 {[%clk
0:02:46.3]} 8... Rg8 {[%clk 0:02:56.1]} 9. Qh6 {[%clk 0:02:44.6]} 9... Nc6
{[%clk 0:02:56.7]} 10. Bg5 {[%clk 0:02:39.4]} 10... Rg6 {[%clk 0:02:56.3]} 11.
Qh4 {[%clk 0:02:31.7]} 11... Ne5 {[%clk 0:02:49.3]} 12. f4 {[%clk 0:02:22.7]}
12... Nxd3+ {[%clk 0:01:56]} 13. cxd3 {[%clk 0:02:22.2]} 13... h6 {[%clk
0:01:55.3]} 14. Bxh6 {[%clk 0:02:13]} 14... Rxg2 {[%clk 0:01:10.7]} 15. Rf1
{[%clk 0:02:03]} 15... Rg4 {[%clk 0:01:02.8]} 16. Qh3 {[%clk 0:01:59.4]} 16...
Qb6 {[%clk 0:00:54.3]} 17. e5 {[%clk 0:01:15.9]} 17... Rg1 {[%clk 0:00:50.8]}
18. exf6 {[%clk 0:01:09.3]} 18... Qf2+ {[%clk 0:00:50.1]} 19. Kd1 {[%clk
0:00:37.7]} 19... Rxf1+ {[%clk 0:00:49.9]} 20. Qxf1 {[%clk 0:00:38.6]} 20...
Qxf1+ {[%clk 0:00:50.8]} 21. Kc2 {[%clk 0:00:39.5]} 21... Qg2+ {[%clk
0:00:35.9]} 22. N1d2 {[%clk 0:00:37.5]} 22... d5 {[%clk 0:00:32.5]} 23. Bg5
{[%clk 0:00:34.9]} 23... Bd7 {[%clk 0:00:32.7]} 24. h4 {[%clk 0:00:33.9]} 24...
Rc8+ {[%clk 0:00:33.1]} 25. Kd1 {[%clk 0:00:28.7]} 25... Be3 {[%clk 0:00:27.8]}
26. h5 {[%clk 0:00:23.1]} 26... e5 {[%clk 0:00:27.9]} 27. h6 {[%clk 0:00:23.4]}
27... Bg4+ {[%clk 0:00:26.9]} 28. Nf3 {[%clk 0:00:15.6]} 28... Bxf3+ {[%clk
0:00:26.9]} 0-1

[Event "*** Titled Tuesday Blitz"]
[Site "Chess.com"]
[Date "2020.03.03"]
[Round "4"]
[White "Orest_Vovk"]
[Black "Nesty_Javi_Chess"]
[Result "0-1"]
[WhiteElo "2534"]
[BlackElo "2705"]
[TimeControl "180+1"]
[EndTime "13:39:54 PST"]
[Termination "Nesty_Javi_Chess won on time"]

1. g4 {[%clk 0:03:00.9]} 1... d5 {[%clk 0:02:58.9]} 2. Bg2 {[%clk 0:03:00.8]}
2... e5 {[%clk 0:02:51.1]} 3. h3 {[%clk 0:03:00.8]} 3... c6 {[%clk 0:02:50.7]}
4. d4 {[%clk 0:03:00.8]} 4... e4 {[%clk 0:02:49.9]} 5. c4 {[%clk 0:03:00.9]}
5... f5 {[%clk 0:02:48.4]} 6. Nc3 {[%clk 0:03:01]} 6... Nf6 {[%clk 0:02:47.9]}
7. g5 {[%clk 0:02:55.5]} 7... Nh5 {[%clk 0:02:46.7]} 8. Qb3 {[%clk 0:02:49.8]}
8... dxc4 {[%clk 0:02:45.5]} 9. Qxc4 {[%clk 0:02:47.3]} 9... Qd6 {[%clk
0:02:41.2]} 10. d5 {[%clk 0:02:39.4]} 10... Be7 {[%clk 0:02:30.9]} 11. Be3
{[%clk 0:02:17.9]} 11... Qb4 {[%clk 0:02:20]} 12. Qxb4 {[%clk 0:02:07]} 12...
Bxb4 {[%clk 0:02:20.9]} 13. O-O-O {[%clk 0:02:03.5]} 13... O-O {[%clk
0:02:18.1]} 14. a3 {[%clk 0:01:53.4]} 14... Bxc3 {[%clk 0:02:16.5]} 15. bxc3
{[%clk 0:01:53.1]} 15... cxd5 {[%clk 0:02:17.4]} 16. Rxd5 {[%clk 0:01:52.1]}
16... Nc6 {[%clk 0:02:17.7]} 17. Bc5 {[%clk 0:01:46.1]} 17... Re8 {[%clk
0:02:16.6]} 18. e3 {[%clk 0:01:44.8]} 18... Be6 {[%clk 0:02:16.4]} 19. Rd6
{[%clk 0:01:34.5]} 19... Ne5 {[%clk 0:02:16.4]} 20. Bf1 {[%clk 0:01:31.1]} 20...
Rac8 {[%clk 0:02:00]} 21. Bd4 {[%clk 0:01:29.1]} 21... Nf7 {[%clk 0:01:59.6]}
22. Rxe6 {[%clk 0:01:16.9]} 22... Rxe6 {[%clk 0:02:00.5]} 23. Be2 {[%clk
0:01:13.4]} 23... g6 {[%clk 0:01:56.4]} 24. Bxh5 {[%clk 0:01:08.4]} 24... gxh5
{[%clk 0:01:57.3]} 25. f4 {[%clk 0:01:06.2]} 25... Nd6 {[%clk 0:01:51.6]} 26.
Ne2 {[%clk 0:01:04.6]} 26... Nb5 {[%clk 0:01:51]} 27. Kd2 {[%clk 0:00:45.1]}
27... Nxa3 {[%clk 0:01:49.1]} 28. Ng3 {[%clk 0:00:43]} 28... Nc4+ {[%clk
0:01:43.9]} 29. Kc2 {[%clk 0:00:35.6]} 29... Ra6 {[%clk 0:01:43.2]} 30. Nxf5
{[%clk 0:00:29.8]} 30... Kf7 {[%clk 0:01:33.5]} 31. Nh6+ {[%clk 0:00:14.2]}
31... Ke7 {[%clk 0:01:28]} 32. Nf5+ {[%clk 0:00:13.3]} 32... Ke6 {[%clk
0:01:27.7]} 33. Ng7+ {[%clk 0:00:12.7]} 33... Kf7 {[%clk 0:01:15]} 34. Nf5
{[%clk 0:00:10.1]} 34... Ra2+ {[%clk 0:01:14.8]} 35. Kb1 {[%clk 0:00:09.9]}
35... Rb2+ {[%clk 0:01:14.9]} 36. Ka1 {[%clk 0:00:10.1]} 36... Rc6 {[%clk
0:01:15]} 0-1